[Event "*** SCC Grand Prix: Titled Tuesday Blitz"]
[Site "Chess.com"]
[Date "2020.06.02"]
[Round "7"]
[White "fischercapa"]
[Black "Jojo_1608"]
[Result "0-1"]
[WhiteElo "2350"]
[BlackElo "2184"]
[TimeControl "180+1"]
[EndTime "11:20:11 PDT"]
[Termination "Jojo_1608 won on time"]

1. e4 {[%clk 0:03:00.7]} 1... c5 {[%clk 0:02:58.4]} 2. Nf3 {[%clk 0:03:00.6]}
2... d6 {[%clk 0:02:58.4]} 3. d4 {[%clk 0:03:00.9]} 3... cxd4 {[%clk 0:02:58.7]}
4. Nxd4 {[%clk 0:03:01.6]} 4... Nf6 {[%clk 0:02:58.8]} 5. Nc3 {[%clk 0:03:02]}
5... a6 {[%clk 0:02:59]} 6. Bg5 {[%clk 0:03:01]} 6... Nbd7 {[%clk 0:02:58.6]} 7.
Qd2 {[%clk 0:02:52.9]} 7... Qc7 {[%clk 0:02:52.5]} 8. f3 {[%clk 0:02:50.4]} 8...
b5 {[%clk 0:02:48.9]} 9. O-O-O {[%clk 0:02:48.5]} 9... Bb7 {[%clk 0:02:45.1]}
10. Nf5 {[%clk 0:02:26.7]} 10... g6 {[%clk 0:02:39.4]} 11. Ne3 {[%clk
0:02:15.2]} 11... Rc8 {[%clk 0:02:37.3]} 12. Kb1 {[%clk 0:02:12.5]} 12... Bg7
{[%clk 0:02:28.4]} 13. h4 {[%clk 0:02:12.3]} 13... b4 {[%clk 0:02:11.7]} 14.
Ncd5 {[%clk 0:01:38.9]} 14... Nxd5 {[%clk 0:02:09.5]} 15. Nxd5 {[%clk
0:01:38.9]} 15... Bxd5 {[%clk 0:02:08.1]} 16. exd5 {[%clk 0:01:37.1]} 16... Nc5
{[%clk 0:01:57]} 17. Bc4 {[%clk 0:00:18.3]} 17... h6 {[%clk 0:01:50.5]} 18. Be3
{[%clk 0:00:16]} 18... Na4 {[%clk 0:01:21.2]} 19. Bd4 {[%clk 0:00:15.9]} 19...
Bxd4 {[%clk 0:01:02.9]} 20. Qxd4 {[%clk 0:00:15.5]} 20... O-O {[%clk 0:01:02.6]}
21. Bb3 {[%clk 0:00:14.3]} 21... Nc5 {[%clk 0:01:00.3]} 22. h5 {[%clk
0:00:10.8]} 22... g5 {[%clk 0:00:56.5]} 23. f4 {[%clk 0:00:11.3]} 23... f6
{[%clk 0:00:43.5]} 24. Rhe1 {[%clk 0:00:08.6]} 24... a5 {[%clk 0:00:41.7]} 25.
Bc4 {[%clk 0:00:07.7]} 25... Na4 {[%clk 0:00:33.6]} 26. Bb3 {[%clk 0:00:04]}
26... Nb6 {[%clk 0:00:30.8]} 27. fxg5 {[%clk 0:00:03.7]} 27... hxg5 {[%clk
0:00:27.3]} 28. Qe4 {[%clk 0:00:03.7]} 28... Rf7 {[%clk 0:00:25.3]} 0-1

[Event "*** SCC Grand Prix: Titled Tuesday Blitz"]
[Site "Chess.com"]
[Date "2020.06.02"]
[Round "7"]
[White "timedothwasteme"]
[Black "Fortitudine"]
[Result "1-0"]
[WhiteElo "2156"]
[BlackElo "2272"]
[TimeControl "180+1"]
[EndTime "11:20:11 PDT"]
[Termination "timedothwasteme won by resignation"]

1. e4 {[%clk 0:02:59.3]} 1... c5 {[%clk 0:02:58.6]} 2. b3 {[%clk 0:02:55.6]}
2... Nc6 {[%clk 0:02:57.4]} 3. Bb2 {[%clk 0:02:53.2]} 3... e5 {[%clk 0:02:57.5]}
4. Bb5 {[%clk 0:02:50.4]} 4... Nd4 {[%clk 0:02:57.4]} 5. Bc4 {[%clk 0:02:46.9]}
5... d6 {[%clk 0:02:52.7]} 6. Ne2 {[%clk 0:02:36.8]} 6... Be7 {[%clk 0:02:45.7]}
7. Nbc3 {[%clk 0:02:33.8]} 7... Nf6 {[%clk 0:02:20.1]} 8. d3 {[%clk 0:02:19.1]}
8... O-O {[%clk 0:02:10.2]} 9. O-O {[%clk 0:02:03.2]} 9... Be6 {[%clk
0:01:29.9]} 10. Bxe6 {[%clk 0:01:52.8]} 10... fxe6 {[%clk 0:01:27.5]} 11. Nxd4
{[%clk 0:01:47.9]} 11... cxd4 {[%clk 0:01:27]} 12. Ne2 {[%clk 0:01:47.7]} 12...
Rc8 {[%clk 0:01:24.1]} 13. c3 {[%clk 0:01:47.5]} 13... dxc3 {[%clk 0:01:22.4]}
14. Bxc3 {[%clk 0:01:46.4]} 14... Nh5 {[%clk 0:01:14.1]} 15. d4 {[%clk
0:01:31.1]} 15... Bf6 {[%clk 0:01:01.9]} 16. d5 {[%clk 0:01:16.3]} 16... Qe7
{[%clk 0:00:55.8]} 17. Rc1 {[%clk 0:01:11.5]} 17... Nf4 {[%clk 0:00:48.2]} 18.
Nxf4 {[%clk 0:01:01.4]} 18... exf4 {[%clk 0:00:49.1]} 19. Bxf6 {[%clk
0:00:54.5]} 19... Qxf6 {[%clk 0:00:46.5]} 20. Rc4 {[%clk 0:00:39.6]} 20... e5
{[%clk 0:00:34.8]} 21. f3 {[%clk 0:00:34.6]} 21... b6 {[%clk 0:00:32.2]} 22. Rc6
{[%clk 0:00:21.8]} 22... Rxc6 {[%clk 0:00:22.4]} 23. dxc6 {[%clk 0:00:21]} 23...
Qe6 {[%clk 0:00:21.5]} 24. Qd5 {[%clk 0:00:20.9]} 24... Qxd5 {[%clk 0:00:21.6]}
25. exd5 {[%clk 0:00:20.3]} 25... Rc8 {[%clk 0:00:18.8]} 26. Rc1 {[%clk
0:00:20.6]} 26... Rc7 {[%clk 0:00:18.9]} 27. Kf2 {[%clk 0:00:21]} 27... Kf7
{[%clk 0:00:18.3]} 28. Ke2 {[%clk 0:00:21.5]} 28... Kf6 {[%clk 0:00:18.6]} 29.
Kd3 {[%clk 0:00:22]} 29... Kf5 {[%clk 0:00:19.1]} 30. b4 {[%clk 0:00:19.3]}
30... g5 {[%clk 0:00:18.8]} 31. a4 {[%clk 0:00:18.8]} 31... h5 {[%clk
0:00:18.6]} 32. h3 {[%clk 0:00:19.3]} 32... g4 {[%clk 0:00:18.7]} 33. hxg4+
{[%clk 0:00:19.3]} 33... hxg4 {[%clk 0:00:19.6]} 34. Rh1 {[%clk 0:00:18.7]}
34... gxf3 {[%clk 0:00:19.6]} 35. gxf3 {[%clk 0:00:19.2]} 35... Rg7 {[%clk
0:00:18.5]} 36. Rh6 {[%clk 0:00:17.5]} 36... Rg1 {[%clk 0:00:18]} 37. Rxd6
{[%clk 0:00:17.2]} 37... Rd1+ {[%clk 0:00:17.9]} 38. Ke2 {[%clk 0:00:17.1]}
38... Rb1 {[%clk 0:00:17.9]} 39. c7 {[%clk 0:00:17.1]} 39... Rc1 {[%clk
0:00:18]} 40. Rc6 {[%clk 0:00:16.4]} 1-0

[Event "*** SCC Grand Prix: Titled Tuesday Blitz"]
[Site "Chess.com"]
[Date "2020.06.02"]
[Round "7"]
[White "manitodeplomo"]
[Black "LiamVrolijk"]
[Result "1-0"]
[WhiteElo "2622"]
[BlackElo "2827"]
[TimeControl "180+1"]
[EndTime "11:20:13 PDT"]
[Termination "manitodeplomo won by resignation"]

1. c4 {[%clk 0:03:00.9]} 1... e6 {[%clk 0:02:59.1]} 2. g3 {[%clk 0:02:58.6]}
2... d5 {[%clk 0:03:00]} 3. Bg2 {[%clk 0:02:59.1]} 3... c5 {[%clk 0:03:00.1]} 4.
Nf3 {[%clk 0:03:00]} 4... Nc6 {[%clk 0:02:58.5]} 5. O-O {[%clk 0:03:00.9]} 5...
Nf6 {[%clk 0:02:58.7]} 6. d4 {[%clk 0:03:01.2]} 6... cxd4 {[%clk 0:02:58.3]} 7.
Nxd4 {[%clk 0:03:02.1]} 7... Bc5 {[%clk 0:02:57.6]} 8. Nb3 {[%clk 0:02:59.1]}
8... Bb6 {[%clk 0:02:57.8]} 9. cxd5 {[%clk 0:02:59.3]} 9... exd5 {[%clk
0:02:58.7]} 10. Nc3 {[%clk 0:02:59.1]} 10... d4 {[%clk 0:02:58.6]} 11. Nb5
{[%clk 0:02:51.4]} 11... O-O {[%clk 0:02:56.6]} 12. Bf4 {[%clk 0:02:48.9]} 12...
Bg4 {[%clk 0:02:27.4]} 13. h3 {[%clk 0:02:47.3]} 13... Bh5 {[%clk 0:02:27.6]}
14. Rc1 {[%clk 0:02:43.8]} 14... Nd5 {[%clk 0:02:14.9]} 15. Bd6 {[%clk
0:02:34.2]} 15... Nde7 {[%clk 0:02:15.1]} 16. g4 {[%clk 0:02:22.5]} 16... Bg6
{[%clk 0:02:13.6]} 17. Nc5 {[%clk 0:02:21.9]} 17... a6 {[%clk 0:01:51.9]} 18.
Nxb7 {[%clk 0:02:05.9]} 18... Qd7 {[%clk 0:01:52.2]} 19. Bxe7 {[%clk 0:02:05.5]}
19... Nxe7 {[%clk 0:01:46]} 20. N5d6 {[%clk 0:01:47.3]} 20... Rab8 {[%clk
0:01:43.7]} 21. Qb3 {[%clk 0:01:41.3]} 21... Ba7 {[%clk 0:01:43.9]} 22. Qc4
{[%clk 0:01:37.6]} 22... h5 {[%clk 0:01:36.3]} 23. Qxa6 {[%clk 0:01:32.9]} 23...
hxg4 {[%clk 0:01:19.4]} 24. Qxa7 {[%clk 0:01:32.7]} 24... gxh3 {[%clk
0:01:19.2]} 25. Bf3 {[%clk 0:01:32.6]} 25... Nf5 {[%clk 0:01:08.3]} 26. Nxf5
{[%clk 0:01:29]} 26... Bxf5 {[%clk 0:01:09.2]} 27. Rfd1 {[%clk 0:01:28.1]} 27...
d3 {[%clk 0:01:07.2]} 28. exd3 {[%clk 0:01:09.5]} 28... Bg4 {[%clk 0:01:04.3]}
29. Qe3 {[%clk 0:01:00.1]} 29... Bxf3 {[%clk 0:01:03.8]} 30. Qxf3 {[%clk
0:01:00.8]} 30... Rxb7 {[%clk 0:01:04.7]} 31. b3 {[%clk 0:00:56.5]} 31... Rb6
{[%clk 0:01:03.2]} 32. Rc4 {[%clk 0:00:53]} 32... Rf6 {[%clk 0:00:37.7]} 33. Rf4
{[%clk 0:00:48.3]} 33... Rxf4 {[%clk 0:00:38]} 34. Qxf4 {[%clk 0:00:49.2]} 34...
Re8 {[%clk 0:00:31.8]} 35. Kh2 {[%clk 0:00:46.3]} 35... Re2 {[%clk 0:00:27.4]}
36. Rg1 {[%clk 0:00:44.8]} 36... g6 {[%clk 0:00:22.4]} 37. Rg3 {[%clk
0:00:41.7]} 37... Qc6 {[%clk 0:00:10.1]} 38. Rxh3 {[%clk 0:00:32.3]} 38... Re1
{[%clk 0:00:10.7]} 39. Rf3 {[%clk 0:00:19.6]} 39... Re8 {[%clk 0:00:11.2]} 1-0

[Event "*** SCC Grand Prix: Titled Tuesday Blitz"]
[Site "Chess.com"]
[Date "2020.06.02"]
[Round "7"]
[White "monalize"]
[Black "ShieldingOff"]
[Result "1-0"]
[WhiteElo "2289"]
[BlackElo "2048"]
[TimeControl "180+1"]
[EndTime "11:20:13 PDT"]
[Termination "monalize won by resignation"]

1. e4 {[%clk 0:03:00.9]} 1... d6 {[%clk 0:02:58.5]} 2. d4 {[%clk 0:03:00.8]}
2... Nd7 {[%clk 0:02:56.6]} 3. Nc3 {[%clk 0:03:00.5]} 3... e5 {[%clk 0:02:54.6]}
4. Be3 {[%clk 0:02:59.6]} 4... c6 {[%clk 0:02:52.2]} 5. a4 {[%clk 0:02:58.1]}
5... Ngf6 {[%clk 0:02:51.9]} 6. f3 {[%clk 0:02:58.2]} 6... Be7 {[%clk
0:02:51.2]} 7. Qd2 {[%clk 0:02:58.1]} 7... O-O {[%clk 0:02:50.8]} 8. Bc4 {[%clk
0:02:56.1]} 8... Qc7 {[%clk 0:02:46.1]} 9. Nge2 {[%clk 0:02:53.6]} 9... b6
{[%clk 0:02:46.1]} 10. Nd1 {[%clk 0:02:44.6]} 10... a6 {[%clk 0:02:43]} 11. c3
{[%clk 0:02:44.1]} 11... Rd8 {[%clk 0:02:39.7]} 12. O-O {[%clk 0:02:38.7]} 12...
d5 {[%clk 0:02:33.7]} 13. exd5 {[%clk 0:02:33]} 13... Nxd5 {[%clk 0:02:29.3]}
14. Bf2 {[%clk 0:02:25.8]} 14... exd4 {[%clk 0:02:23.3]} 15. cxd4 {[%clk
0:02:24.9]} 15... N7f6 {[%clk 0:02:21]} 16. Ndc3 {[%clk 0:02:20.3]} 16... Be6
{[%clk 0:02:14]} 17. Bd3 {[%clk 0:02:12]} 17... c5 {[%clk 0:02:05.8]} 18. Rac1
{[%clk 0:02:08]} 18... Qb7 {[%clk 0:02:01.1]} 19. Bb1 {[%clk 0:01:55.7]} 19...
c4 {[%clk 0:01:43.5]} 20. Ne4 {[%clk 0:01:23]} 20... b5 {[%clk 0:01:36]} 21.
axb5 {[%clk 0:01:21.3]} 21... axb5 {[%clk 0:01:35.1]} 22. Qc2 {[%clk 0:01:08.3]}
22... g6 {[%clk 0:01:20.3]} 23. Nc5 {[%clk 0:01:04.1]} 23... Bxc5 {[%clk
0:01:18.3]} 24. dxc5 {[%clk 0:01:03.5]} 24... Nb4 {[%clk 0:01:17.7]} 25. Qc3
{[%clk 0:01:00.7]} 25... Nfd5 {[%clk 0:01:16.3]} 26. Qe5 {[%clk 0:00:59.3]}
26... Nd3 {[%clk 0:01:00.8]} 27. Bxd3 {[%clk 0:00:54.2]} 27... cxd3 {[%clk
0:00:59.8]} 28. Bd4 {[%clk 0:00:53.9]} 28... Kf8 {[%clk 0:00:43]} 29. Qg7+
{[%clk 0:00:32.1]} 29... Ke7 {[%clk 0:00:42.2]} 30. c6 {[%clk 0:00:32.2]} 30...
Qc7 {[%clk 0:00:33.4]} 31. Bc5+ {[%clk 0:00:31.4]} 31... Rd6 {[%clk 0:00:30.8]}
32. Nd4 {[%clk 0:00:30.7]} 32... d2 {[%clk 0:00:15.5]} 33. Rcd1 {[%clk
0:00:28.4]} 33... Ne3 {[%clk 0:00:14]} 34. Nxb5 {[%clk 0:00:22]} 34... Qxc6
{[%clk 0:00:09.8]} 35. Bxd6+ {[%clk 0:00:19.9]} 35... Qxd6 {[%clk 0:00:09.5]}
36. Nxd6 {[%clk 0:00:18.8]} 1-0

[Event "*** SCC Grand Prix: Titled Tuesday Blitz"]
[Site "Chess.com"]
[Date "2020.06.02"]
[Round "7"]
[White "1977Ivan"]
[Black "maciek_92"]
[Result "1-0"]
[WhiteElo "2605"]
[BlackElo "2780"]
[TimeControl "180+1"]
[EndTime "11:20:14 PDT"]
[Termination "1977Ivan won by checkmate"]

1. d4 {[%clk 0:03:00.9]} 1... Nf6 {[%clk 0:02:59.6]} 2. c4 {[%clk 0:03:00.8]}
2... e6 {[%clk 0:02:58.9]} 3. Nc3 {[%clk 0:03:01.1]} 3... Bb4 {[%clk 0:02:58.6]}
4. Qc2 {[%clk 0:03:01.6]} 4... O-O {[%clk 0:02:57.9]} 5. e4 {[%clk 0:03:02]}
5... d5 {[%clk 0:02:57.1]} 6. e5 {[%clk 0:03:02.4]} 6... Ne4 {[%clk 0:02:57.6]}
7. Bd3 {[%clk 0:03:02.8]} 7... c5 {[%clk 0:02:57.8]} 8. Nf3 {[%clk 0:03:03.3]}
8... cxd4 {[%clk 0:02:57.5]} 9. Nxd4 {[%clk 0:03:03.3]} 9... Nd7 {[%clk
0:02:57]} 10. Bf4 {[%clk 0:03:03.4]} 10... Ndc5 {[%clk 0:02:55.2]} 11. O-O
{[%clk 0:02:59.6]} 11... Bxc3 {[%clk 0:02:43.6]} 12. bxc3 {[%clk 0:02:59.3]}
12... Nxd3 {[%clk 0:02:42.5]} 13. Qxd3 {[%clk 0:02:58.7]} 13... Nc5 {[%clk
0:02:30.4]} 14. Qg3 {[%clk 0:02:52]} 14... Kh8 {[%clk 0:02:10]} 15. Rad1 {[%clk
0:02:43.2]} 15... Qa5 {[%clk 0:01:34.1]} 16. Qe3 {[%clk 0:01:41]} 16... dxc4
{[%clk 0:01:25.1]} 17. Bg5 {[%clk 0:01:28.8]} 17... Nd3 {[%clk 0:01:20.1]} 18.
Be7 {[%clk 0:01:26.3]} 18... Rg8 {[%clk 0:01:08.9]} 19. Bd6 {[%clk 0:01:25.7]}
19... Bd7 {[%clk 0:01:08.5]} 20. f4 {[%clk 0:00:53.8]} 20... Qxc3 {[%clk
0:00:54.1]} 21. Rf3 {[%clk 0:00:54.1]} 21... f5 {[%clk 0:00:17.6]} 22. Rh3
{[%clk 0:00:39.2]} 22... h6 {[%clk 0:00:12.7]} 23. Rf1 {[%clk 0:00:33.2]} 23...
Kh7 {[%clk 0:00:12.4]} 24. Nf3 {[%clk 0:00:28]} 24... Kg6 {[%clk 0:00:07.8]} 25.
Nh4+ {[%clk 0:00:18.4]} 25... Kf7 {[%clk 0:00:07.4]} 26. Rg3 {[%clk 0:00:18]}
26... g6 {[%clk 0:00:07.3]} 27. Nf3 {[%clk 0:00:16.6]} 27... b6 {[%clk
0:00:06.2]} 28. Rh3 {[%clk 0:00:16.3]} 28... Kg7 {[%clk 0:00:06.2]} 29. Nd4
{[%clk 0:00:14.7]} 29... Qb2 {[%clk 0:00:03.2]} 30. Kh1 {[%clk 0:00:14.1]} 30...
Qxa2 {[%clk 0:00:03.2]} 31. Qg3 {[%clk 0:00:13.7]} 31... Qa6 {[%clk 0:00:02.8]}
32. Qh4 {[%clk 0:00:13.3]} 32... Kf7 {[%clk 0:00:03]} 33. Qe7# {[%clk
0:00:11.7]} 1-0

[Event "*** SCC Grand Prix: Titled Tuesday Blitz"]
[Site "Chess.com"]
[Date "2020.06.02"]
[Round "7"]
[White "DanielDardha2005"]
[Black "Malysch"]
[Result "1-0"]
[WhiteElo "2673"]
[BlackElo "2521"]
[TimeControl "180+1"]
[EndTime "11:20:17 PDT"]
[Termination "DanielDardha2005 won by resignation"]

1. Nf3 {[%clk 0:03:00.6]} 1... d5 {[%clk 0:02:59.7]} 2. c4 {[%clk 0:02:59.4]}
2... e6 {[%clk 0:02:59.3]} 3. g3 {[%clk 0:02:56.9]} 3... dxc4 {[%clk 0:02:58.8]}
4. Qa4+ {[%clk 0:02:54.9]} 4... Nd7 {[%clk 0:02:57.7]} 5. Qxc4 {[%clk
0:02:54.8]} 5... a6 {[%clk 0:02:57.9]} 6. Bg2 {[%clk 0:02:54.3]} 6... b5 {[%clk
0:02:57.6]} 7. Qb3 {[%clk 0:02:53.6]} 7... Bb7 {[%clk 0:02:57.4]} 8. O-O {[%clk
0:02:52.4]} 8... c5 {[%clk 0:02:56.7]} 9. d3 {[%clk 0:02:51.8]} 9... Ngf6 {[%clk
0:02:53]} 10. a4 {[%clk 0:02:52.1]} 10... Bd5 {[%clk 0:02:30.1]} 11. Qc2 {[%clk
0:02:49.6]} 11... Be7 {[%clk 0:02:23.5]} 12. Nc3 {[%clk 0:02:43.7]} 12... Bc6
{[%clk 0:02:22.6]} 13. e4 {[%clk 0:02:29.2]} 13... O-O {[%clk 0:02:17.2]} 14.
Rd1 {[%clk 0:01:58.7]} 14... Qb6 {[%clk 0:02:07.8]} 15. d4 {[%clk 0:01:45.2]}
15... b4 {[%clk 0:01:59.2]} 16. d5 {[%clk 0:01:44.2]} 16... exd5 {[%clk
0:01:11.3]} 17. Nxd5 {[%clk 0:01:40.3]} 17... Nxd5 {[%clk 0:00:45.6]} 18. exd5
{[%clk 0:01:38.5]} 18... Bb7 {[%clk 0:00:46.5]} 19. Nd2 {[%clk 0:01:30.2]} 19...
Ne5 {[%clk 0:00:43]} 20. Nc4 {[%clk 0:01:12.5]} 20... Nxc4 {[%clk 0:00:41.6]}
21. Qxc4 {[%clk 0:01:13.4]} 21... Rad8 {[%clk 0:00:40.5]} 22. Be3 {[%clk
0:01:10.6]} 22... Bd6 {[%clk 0:00:38.8]} 23. Rac1 {[%clk 0:01:10.1]} 23... Rc8
{[%clk 0:00:38.9]} 24. h4 {[%clk 0:01:05.7]} 24... a5 {[%clk 0:00:37.8]} 25. h5
{[%clk 0:01:05.9]} 25... h6 {[%clk 0:00:37.6]} 26. Qg4 {[%clk 0:01:00.1]} 26...
Be5 {[%clk 0:00:34.3]} 27. b3 {[%clk 0:00:38.6]} 27... Rfd8 {[%clk 0:00:34.1]}
28. Qf5 {[%clk 0:00:35.9]} 28... Qf6 {[%clk 0:00:19.9]} 29. Qxf6 {[%clk
0:00:34]} 29... Bxf6 {[%clk 0:00:20.8]} 30. Rxc5 {[%clk 0:00:33.5]} 30... Rxc5
{[%clk 0:00:17.3]} 31. Bxc5 {[%clk 0:00:34.4]} 31... Bc3 {[%clk 0:00:16.8]} 32.
Bb6 {[%clk 0:00:31.9]} 32... Rd7 {[%clk 0:00:16.1]} 33. Bxa5 {[%clk 0:00:31.3]}
33... Kf8 {[%clk 0:00:16.3]} 34. d6 {[%clk 0:00:24.7]} 34... Bxg2 {[%clk
0:00:13.4]} 35. Kxg2 {[%clk 0:00:25.6]} 35... f5 {[%clk 0:00:12.8]} 36. Bc7
{[%clk 0:00:23.1]} 36... Kf7 {[%clk 0:00:12.7]} 37. a5 {[%clk 0:00:23.4]} 1-0

[Event "*** SCC Grand Prix: Titled Tuesday Blitz"]
[Site "Chess.com"]
[Date "2020.06.02"]
[Round "7"]
[White "kingmonkey2006"]
[Black "DLR7"]
[Result "0-1"]
[WhiteElo "2511"]
[BlackElo "2667"]
[TimeControl "180+1"]
[EndTime "11:20:20 PDT"]
[Termination "DLR7 won by resignation"]

1. e4 {[%clk 0:03:00.6]} 1... c5 {[%clk 0:02:59.9]} 2. Nf3 {[%clk 0:03:00.9]}
2... Nc6 {[%clk 0:03:00.3]} 3. d4 {[%clk 0:03:01.7]} 3... cxd4 {[%clk
0:03:01.2]} 4. Nxd4 {[%clk 0:03:02.3]} 4... e5 {[%clk 0:03:01.7]} 5. Nb5 {[%clk
0:03:02.4]} 5... a6 {[%clk 0:03:02.2]} 6. Nd6+ {[%clk 0:03:02.6]} 6... Bxd6
{[%clk 0:03:02.7]} 7. Qxd6 {[%clk 0:03:03.5]} 7... Qf6 {[%clk 0:03:03.2]} 8.
Qxf6 {[%clk 0:03:01]} 8... Nxf6 {[%clk 0:03:04.1]} 9. Nc3 {[%clk 0:03:01.8]}
9... Nb4 {[%clk 0:03:03.8]} 10. Kd2 {[%clk 0:03:02.2]} 10... d6 {[%clk
0:03:02.9]} 11. b3 {[%clk 0:02:57.8]} 11... Be6 {[%clk 0:02:29.7]} 12. Ba3
{[%clk 0:02:22.5]} 12... Nc6 {[%clk 0:02:29.2]} 13. f3 {[%clk 0:02:16.4]} 13...
O-O-O {[%clk 0:02:26.7]} 14. Rd1 {[%clk 0:02:08.2]} 14... b5 {[%clk 0:02:22.1]}
15. Bb2 {[%clk 0:02:00.5]} 15... d5 {[%clk 0:02:20.6]} 16. exd5 {[%clk
0:01:57.9]} 16... Nxd5 {[%clk 0:02:20.6]} 17. Nxd5 {[%clk 0:01:58.4]} 17...
Rxd5+ {[%clk 0:02:17.1]} 18. Kc1 {[%clk 0:01:58.6]} 18... Rxd1+ {[%clk
0:02:14.3]} 19. Kxd1 {[%clk 0:01:59.5]} 19... Kb7 {[%clk 0:02:03.3]} 20. Bd3
{[%clk 0:01:46.3]} 20... f6 {[%clk 0:01:59.3]} 21. Be4 {[%clk 0:01:45.2]} 21...
Bf7 {[%clk 0:01:52.3]} 22. Ke2 {[%clk 0:01:43.1]} 22... Bg6 {[%clk 0:01:50.5]}
23. Bxc6+ {[%clk 0:01:41.1]} 23... Kxc6 {[%clk 0:01:50.1]} 24. c3 {[%clk
0:01:40.2]} 24... a5 {[%clk 0:01:42.6]} 25. Rd1 {[%clk 0:01:39.7]} 25... Bf7
{[%clk 0:01:37.9]} 26. Ba3 {[%clk 0:01:37]} 26... Bd5 {[%clk 0:01:35.5]} 27. Rc1
{[%clk 0:01:23.5]} 27... Kd7 {[%clk 0:01:27.7]} 28. c4 {[%clk 0:01:22.3]} 28...
bxc4 {[%clk 0:01:24.6]} 29. bxc4 {[%clk 0:01:23.2]} 29... Bf7 {[%clk 0:01:22]}
30. Kd3 {[%clk 0:01:20.9]} 30... Rc8 {[%clk 0:01:18.3]} 31. g3 {[%clk 0:00:54]}
31... g5 {[%clk 0:01:13.8]} 32. Bb2 {[%clk 0:00:45.7]} 32... Ke7 {[%clk
0:01:08.8]} 33. Ba3+ {[%clk 0:00:33.9]} 33... Ke6 {[%clk 0:01:08.9]} 34. Kc3
{[%clk 0:00:33.3]} 34... h5 {[%clk 0:00:59.6]} 35. c5 {[%clk 0:00:32.9]} 35...
Kf5 {[%clk 0:00:56.6]} 36. Rc2 {[%clk 0:00:26.9]} 36... Bd5 {[%clk 0:00:53]} 37.
Rf2 {[%clk 0:00:26.2]} 37... Rb8 {[%clk 0:00:39.7]} 38. Rf1 {[%clk 0:00:17.2]}
38... Bxa2 {[%clk 0:00:35.6]} 39. Rd1 {[%clk 0:00:14.2]} 39... Rb3+ {[%clk
0:00:35.1]} 40. Kc2 {[%clk 0:00:12.7]} 40... Rxa3 {[%clk 0:00:35.3]} 41. Kb2
{[%clk 0:00:13.1]} 41... Ra4 {[%clk 0:00:35.6]} 42. c6 {[%clk 0:00:09.9]} 42...
Be6 {[%clk 0:00:35.8]} 0-1

[Event "*** SCC Grand Prix: Titled Tuesday Blitz"]
[Site "Chess.com"]
[Date "2020.06.02"]
[Round "7"]
[White "ninodg"]
[Black "sotochess"]
[Result "0-1"]
[WhiteElo "2499"]
[BlackElo "2266"]
[TimeControl "180+1"]
[EndTime "11:20:21 PDT"]
[Termination "sotochess won by checkmate"]

1. e4 {[%clk 0:03:00.9]} 1... d5 {[%clk 0:02:58]} 2. exd5 {[%clk 0:03:00.6]}
2... Qxd5 {[%clk 0:02:58]} 3. Nc3 {[%clk 0:03:00.5]} 3... Qa5 {[%clk 0:02:58]}
4. d4 {[%clk 0:03:00.8]} 4... Nf6 {[%clk 0:02:56.4]} 5. Bc4 {[%clk 0:02:58.3]}
5... c6 {[%clk 0:02:56.2]} 6. Bd2 {[%clk 0:02:57.9]} 6... Qb6 {[%clk 0:02:55.5]}
7. Nf3 {[%clk 0:02:51.4]} 7... Bf5 {[%clk 0:02:36.9]} 8. O-O {[%clk 0:02:20.9]}
8... e6 {[%clk 0:02:35.3]} 9. Bb3 {[%clk 0:02:04.6]} 9... Nbd7 {[%clk
0:02:31.6]} 10. Na4 {[%clk 0:02:02.8]} 10... Qc7 {[%clk 0:02:31.3]} 11. c4
{[%clk 0:02:03.4]} 11... Be7 {[%clk 0:02:22]} 12. Rc1 {[%clk 0:02:00]} 12... O-O
{[%clk 0:02:20.5]} 13. d5 {[%clk 0:01:56.3]} 13... Rad8 {[%clk 0:02:19]} 14. Qe2
{[%clk 0:01:50.5]} 14... Rfe8 {[%clk 0:02:12]} 15. dxe6 {[%clk 0:01:35]} 15...
Bxe6 {[%clk 0:02:11.4]} 16. Ng5 {[%clk 0:01:35.4]} 16... Bd6 {[%clk 0:02:10.9]}
17. Nxe6 {[%clk 0:01:12]} 17... Rxe6 {[%clk 0:02:09.6]} 18. Qf3 {[%clk
0:01:01.3]} 18... Bxh2+ {[%clk 0:02:06.7]} 19. Kh1 {[%clk 0:01:01.5]} 19... Be5
{[%clk 0:02:00]} 20. c5 {[%clk 0:00:57.9]} 20... Re7 {[%clk 0:01:59.5]} 21. Rfe1
{[%clk 0:00:44]} 21... Rde8 {[%clk 0:01:58.9]} 22. Bg5 {[%clk 0:00:27.8]} 22...
h6 {[%clk 0:01:58.3]} 23. Be3 {[%clk 0:00:21.1]} 23... Nf8 {[%clk 0:01:55.2]}
24. Qf5 {[%clk 0:00:18.7]} 24... Ng6 {[%clk 0:01:51.1]} 25. Qxg6 {[%clk
0:00:18.7]} 25... Kf8 {[%clk 0:01:45.3]} 26. Qf5 {[%clk 0:00:17.3]} 26... Bf4
{[%clk 0:01:38.7]} 27. Nc3 {[%clk 0:00:09.6]} 27... Bxe3 {[%clk 0:01:38.1]} 28.
Rxe3 {[%clk 0:00:09.2]} 28... Rxe3 {[%clk 0:01:38.5]} 29. fxe3 {[%clk
0:00:10.1]} 29... Rxe3 {[%clk 0:01:38.8]} 30. Rf1 {[%clk 0:00:10.5]} 30... Re5
{[%clk 0:01:35.9]} 31. Qf4 {[%clk 0:00:10.2]} 31... Qe7 {[%clk 0:01:35.5]} 32.
Bc4 {[%clk 0:00:06.7]} 32... Qxc5 {[%clk 0:01:32.8]} 33. g3 {[%clk 0:00:04.1]}
33... b5 {[%clk 0:01:27]} 34. Bb3 {[%clk 0:00:03.6]} 34... a5 {[%clk 0:01:26]}
35. a3 {[%clk 0:00:03.6]} 35... b4 {[%clk 0:01:22.2]} 36. axb4 {[%clk
0:00:04.5]} 36... axb4 {[%clk 0:01:22.3]} 37. Na4 {[%clk 0:00:05.3]} 37... Qe7
{[%clk 0:01:22.6]} 38. Kg2 {[%clk 0:00:04.4]} 38... Re2+ {[%clk 0:01:21.5]} 39.
Rf2 {[%clk 0:00:05]} 39... Re4 {[%clk 0:01:21.5]} 40. Qf3 {[%clk 0:00:05]} 40...
c5 {[%clk 0:01:19.4]} 41. Nb6 {[%clk 0:00:04.7]} 41... Re3 {[%clk 0:01:13.3]}
42. Qf4 {[%clk 0:00:03.3]} 42... Rxb3 {[%clk 0:01:07.6]} 43. Qb8+ {[%clk
0:00:03.8]} 43... Qe8 {[%clk 0:01:07.5]} 44. Qd6+ {[%clk 0:00:04.4]} 44... Kg8
{[%clk 0:01:06.1]} 45. Qxc5 {[%clk 0:00:05]} 45... Qe4+ {[%clk 0:01:03.6]} 46.
Kg1 {[%clk 0:00:05.3]} 46... Rxg3+ {[%clk 0:01:02.9]} 47. Kf1 {[%clk 0:00:04.6]}
47... Qd3+ {[%clk 0:01:01.9]} 48. Re2 {[%clk 0:00:05.2]} 48... Qd1+ {[%clk
0:01:01]} 49. Kf2 {[%clk 0:00:05.1]} 49... Qg1# {[%clk 0:01:00.4]} 0-1